[Event "Kupreichik Memorial Rapid 2019"]
[Site "Minsk"]
[Date "2019.08.16"]
[Round "5.15"]
[White "Veremeichik, Vladimir"]
[Black "Siniauski, Artsiom"]
[Result "1/2-1/2"]
[ECO "E32"]
[WhiteElo "2282"]
[BlackElo "2142"]
[Annotator "NA"]
[PlyCount "112"]
[EventDate "2019.08.15"]
[EventType "swiss"]
[EventCountry "BLR"]
[SourceTitle "playchess.com"]
[Source "ChessBase"]
[SourceQuality "1"]
[TimeControl "900+10"]

1. d4 {[%emt 0:00:00]} Nf6 {[%emt 0:00:00]} 2. c4 {[%emt 0:00:00]} e6 {[%emt 0:00:00]} 3. Nc3 {[%emt 0:00:00]} Bb4 {[%emt 0:00:00]} 4. Qc2 {[%emt 0:00:00]} O-O {[%emt 0:00:21]} 5. a3 {[%emt 0:00:00]} Bxc3+ {[%emt 0:00:14]} 6. Qxc3 {[%emt 0:00:00]} d5 {[%emt 0:00:02]} 7. Nf3 {[%emt 0:00:14]} b6 {[%emt 0:00:10]} 8. Bg5 {[%emt 0:00:43]} Nbd7 {[%emt 0:00:43]} 9. cxd5 {[%emt 0:00:26]} exd5 {[%emt 0:00:21]} 10. Rc1 {[%emt 0:00:12]} c5 {[%emt 0:00:29]} 11. dxc5 {[%emt 0:00:12]} bxc5 {[%emt 0:00:06]} 12. e3 {[%emt 0:00:02]} Qb6 {[%emt 0:00:41]} 13. Bxf6 {[%emt 0:00:28]} Nxf6 {[%emt 0:00:28]} 14. Qxc5 {[%emt 0:00:40]} Qxb2 {[%emt 0:00:15]} 15. Qc3 {[%emt 0:00:02]} Rb8 {[%emt 0:00:20]} 16. Bd3 {[%emt 0:01:07]} Ne4 {[%emt 0:00:58]} 17. Qxb2 {[%emt 0:00:13]} Rxb2 {[%emt 0:00:03]} 18. O-O {[%emt 0:00:04]} Rb3 {[%emt 0:00:16]} 19. Bxe4 {[%emt 0:00:12]} dxe4 {[%emt 0:00:02]} 20. Nd2 {[%emt 0:00:03]} Rxa3 {[%emt 0:00:07]} 21. Nxe4 {[%emt 0:00:02]} Bf5 {[%emt 0:01:04]} 22. Nd6 {[%emt 0:01:02]} Be6 {[%emt 0:00:11]} 23. Ra1 {[%emt 0:00:12]} Rxa1 {[%emt 0:01:13]} 24. Rxa1 {[%emt 0:00:01]} Ra8 {[%emt 0:00:02]} 25. Ra6 {[%emt 0:00:43]} Kf8 {[%emt 0:00:12]} 26. f4 {[%emt 0:00:05]} Ke7 {[%emt 0:00:30]} 27. e4 {[%emt 0:00:10]} f6 {[%emt 0:00:55]} 28. Kf2 {[%emt 0:00:32]} Bd7 {[%emt 0:00:57]} 29. h3 {[%emt 0:01:40]} Rb8 {[%emt 0:02:28]} 30. Nc4 {[%emt 0:01:27]} Rb4 {[%emt 0:01:32]} 31. Nd2 {[%emt 0:00:03]} Ra4 {[%emt 0:00:46]} 32. Rxa4 {[%emt 0:00:03]} Bxa4 {[%emt 0:00:01]} 33. Ke3 {[%emt 0:00:01]} Bb5 {[%emt 0:00:14]} 34. Nb3 {[%emt 0:00:10]} Kd6 {[%emt 0:00:24]} 35. Nd4 {[%emt 0:00:46]} Bd7 {[%emt 0:01:01]} 36. Kd3 {[%emt 0:00:29]} Kc5 {[%emt 0:00:23]} 37. Kc3 {[%emt 0:00:04]} a6 {[%emt 0:00:35]} 38. Nb3+ {[%emt 0:00:58]} Kb6 {[%emt 0:00:19]} 39. Kd4 {[%emt 0:00:43]} a5 {[%emt 0:00:31]} 40. Nc5 {[%emt 0:00:03]} Bc6 {[%emt 0:00:32]} 41. Ne6 {[%emt 0:00:14]} a4 {[%emt 0:00:53]} 42. Nxg7 {[%emt 0:00:03]} Bxe4 {[%emt 0:00:56]} 43. Ne8 {[%emt 0:00:17]} a3 {[%emt 0:00:16]} 44. Kc3 {[%emt 0:00:04]} f5 {[%emt 0:00:17]} 45. g4 {[%emt 0:00:02]} fxg4 {[%emt 0:00:22]} 46. hxg4 {[%emt 0:00:01]} Bf3 {[%emt 0:00:08]} 47. Nf6 {[%emt 0:00:33]} Bxg4 {[%emt 0:00:21]} 48. Nxg4 {[%emt 0:01:09]} h5 {[%emt 0:00:00]} 49. Nf2 {[%emt 0:00:01]} Kc5 {[%emt 0:00:06]} 50. Kb3 {[%emt 0:00:07]} Kd4 {[%emt 0:00:16]} 51. Kxa3 {[%emt 0:00:05]} h4 {[%emt 0:00:02]} 52. Kb3 {[%emt 0:00:08]} Ke3 {[%emt 0:00:00]} 53. f5 {[%emt 0:00:01]} Kxf2 {[%emt 0:00:01]} 54. f6 {[%emt 0:00:01]} h3 {[%emt 0:00:01]} 55. f7 {[%emt 0:00:00]} h2 {[%emt 0:00:01]} 56. f8=Q+ {[%emt 0:00:02]} Kg2 {[%emt 0:00:00]} 1/2-1/2

[Event "Kupreichik Memorial Rapid 2019"]
[Site "Minsk"]
[Date "2019.08.16"]
[Round "5.17"]
[White "Naumovich, Yaroslav"]
[Black "Smirnov, Valerij"]
[Result "0-1"]
[ECO "A04"]
[WhiteElo "1868"]
[BlackElo "2261"]
[Annotator "NA"]
[PlyCount "112"]
[EventDate "2019.08.15"]
[EventType "swiss"]
[EventCountry "BLR"]
[SourceTitle "playchess.com"]
[Source "ChessBase"]
[SourceQuality "1"]
[TimeControl "900+10"]

1. Nf3 {[%emt 0:00:00]} c5 {[%emt 0:00:00]} 2. e3 {[%emt 0:00:00]} g6 {[%emt 0:00:00]} 3. d4 {[%emt 0:00:00]} Bg7 {[%emt 0:00:02]} 4. c4 {[%emt 0:00:19]} Nf6 {[%emt 0:00:09]} 5. Nc3 {[%emt 0:00:02]} O-O {[%emt 0:00:10]} 6. Be2 {[%emt 0:00:04]} cxd4 {[%emt 0:00:06]} 7. exd4 {[%emt 0:00:28]} d5 {[%emt 0:00:03]} 8. O-O {[%emt 0:00:04]} Nc6 {[%emt 0:00:04]} 9. h3 {[%emt 0:00:56]} dxc4 {[%emt 0:00:57]} 10. Bxc4 {[%emt 0:00:03]} Na5 {[%emt 0:00:08]} 11. Bd3 {[%emt 0:00:44]} Be6 {[%emt 0:00:14]} 12. Re1 {[%emt 0:00:32]} Bc4 {[%emt 0:00:17]} 13. Bxc4 {[%emt 0:00:59]} Nxc4 {[%emt 0:00:02]} 14. Qe2 {[%emt 0:00:58]} Qc8 {[%emt 0:00:50]} 15. Bg5 {[%emt 0:02:37]} e6 {[%emt 0:01:32]} 16. Rac1 {[%emt 0:00:02]} Nb6 {[%emt 0:00:02]} 17. Ne5 {[%emt 0:01:41]} Qe8 {[%emt 0:00:43]} 18. Bxf6 {[%emt 0:03:52]} Bxf6 {[%emt 0:00:04]} 19. Ne4 {[%emt 0:00:02]} Be7 {[%emt 0:04:41]} 20. Rc7 {[%emt 0:00:27]} Rb8 {[%emt 0:01:23]} 21. Rec1 {[%emt 0:02:09]} Nd5 {[%emt 0:00:22]} 22. R7c4 {[%emt 0:00:01]} f6 {[%emt 0:01:18]} 23. Nd3 {[%emt 0:00:23]} Qf7 {[%emt 0:01:05]} 24. Nec5 {[%emt 0:01:34]} Bxc5 {[%emt 0:00:36]} 25. Rxc5 {[%emt 0:00:01]} Rfe8 {[%emt 0:00:13]} 26. Qf3 {[%emt 0:00:23]} Rbd8 {[%emt 0:00:53]} 27. Nf4 {[%emt 0:00:29]} Nxf4 {[%emt 0:00:07]} 28. Qxf4 {[%emt 0:00:01]} Rd7 {[%emt 0:00:02]} 29. Rc8 {[%emt 0:00:05]} Rxc8 {[%emt 0:00:11]} 30. Rxc8+ {[%emt 0:00:01]} Kg7 {[%emt 0:00:02]} 31. h4 {[%emt 0:00:18]} Qe7 {[%emt 0:00:51]} 32. h5 {[%emt 0:00:42]} g5 {[%emt 0:00:22]} 33. Qe4 {[%emt 0:00:09]} Qd6 {[%emt 0:00:35]} 34. g4 {[%emt 0:00:21]} a6 {[%emt 0:00:35]} 35. a3 {[%emt 0:00:01]} Kh6 {[%emt 0:00:12]} 36. Rc3 {[%emt 0:00:17]} Qf4 {[%emt 0:00:16]} 37. Qxe6 {[%emt 0:00:09]} Rxd4 {[%emt 0:00:12]} 38. Rg3 {[%emt 0:00:11]} Rd1+ {[%emt 0:00:14]} 39. Kg2 {[%emt 0:00:06]} Rd4 {[%emt 0:00:12]} 40. Qe7 {[%emt 0:00:07]} Qe4+ {[%emt 0:00:04]} 41. Qxe4 {[%emt 0:00:01]} Rxe4 {[%emt 0:00:01]} 42. b4 {[%emt 0:00:24]} b5 {[%emt 0:00:01]} 43. Kh3 {[%emt 0:00:07]} Rf4 {[%emt 0:00:07]} 44. Kg2 {[%emt 0:00:18]} f5 {[%emt 0:00:04]} 45. f3 {[%emt 0:00:09]} Rc4 {[%emt 0:00:28]} 46. gxf5 {[%emt 0:00:01]} Rf4 {[%emt 0:00:06]} 47. Kf2 {[%emt 0:00:17]} Rxf5 {[%emt 0:00:02]} 48. Ke3 {[%emt 0:00:01]} Kxh5 {[%emt 0:00:04]} 49. Ke4 {[%emt 0:00:09]} Rf4+ {[%emt 0:00:06]} 50. Ke5 {[%emt 0:00:17]} Kh4 {[%emt 0:00:08]} 51. Rg1 {[%emt 0:00:03]} Rxf3 {[%emt 0:00:02]} 52. Kd5 {[%emt 0:00:06]} h5 {[%emt 0:00:10]} 53. Kc5 {[%emt 0:00:21]} Rxa3 {[%emt 0:00:07]} 54. Rh1+ {[%emt 0:00:01]} Kg4 {[%emt 0:00:02]} 55. Rg1+ {[%emt 0:00:01]} Kf5 {[%emt 0:00:01]} 56. Rf1+ {[%emt 0:00:02]} Kg6 {[%emt 0:00:01]} 0-1

[Event "Kupreichik Memorial Rapid 2019"]
[Site "Minsk"]
[Date "2019.08.16"]
[Round "5.18"]
[White "Kolosovskaya, Olga"]
[Black "Kuleshov, Konstantin"]
[Result "0-1"]
[ECO "D78"]
[WhiteElo "1719"]
[BlackElo "2076"]
[Annotator "NA"]
[PlyCount "116"]
[EventDate "2019.08.15"]
[EventType "swiss"]
[EventCountry "BLR"]
[SourceTitle "playchess.com"]
[Source "ChessBase"]
[SourceQuality "1"]
[TimeControl "900+10"]

1. d4 {[%emt 0:00:00]} Nf6 {[%emt 0:00:00]} 2. c4 {[%emt 0:00:00]} g6 {[%emt 0:00:00]} 3. g3 {[%emt 0:00:00]} d5 {[%emt 0:00:00]} 4. Nf3 {[%emt 0:00:02]} Bg7 {[%emt 0:00:00]} 5. Bg2 {[%emt 0:00:01]} O-O {[%emt 0:00:00]} 6. O-O {[%emt 0:00:03]} c6 {[%emt 0:00:05]} 7. Nc3 {[%emt 0:00:08]} dxc4 {[%emt 0:00:45]} 8. e3 {[%emt 0:00:19]} Nd5 {[%emt 0:00:12]} 9. Nd2 {[%emt 0:00:19]} e5 {[%emt 0:00:34]} 10. Nxc4 {[%emt 0:00:36]} exd4 {[%emt 0:00:03]} 11. exd4 {[%emt 0:00:02]} Nb6 {[%emt 0:00:08]} 12. Ne5 {[%emt 0:01:10]} N8d7 {[%emt 0:00:05]} 13. Nf3 {[%emt 0:00:17]} Nf6 {[%emt 0:00:04]} 14. Bg5 {[%emt 0:00:45]} h6 {[%emt 0:00:06]} 15. Be3 {[%emt 0:00:05]} Kh7 {[%emt 0:00:19]} 16. Ne5 {[%emt 0:00:07]} Nfd5 {[%emt 0:00:13]} 17. Qe2 {[%emt 0:03:19]} Be6 {[%emt 0:00:09]} 18. Rad1 {[%emt 0:00:19]} Qc7 {[%emt 0:00:30]} 19. Nf3 {[%emt 0:01:27]} Nxc3 {[%emt 0:00:05]} 20. bxc3 {[%emt 0:00:02]} Bc4 {[%emt 0:00:02]} 21. Qc2 {[%emt 0:00:16]} Bxf1 {[%emt 0:00:03]} 22. Bxf1 {[%emt 0:00:02]} Nd5 {[%emt 0:00:09]} 23. Bd2 {[%emt 0:00:15]} Rfe8 {[%emt 0:00:14]} 24. Bd3 {[%emt 0:00:02]} Rad8 {[%emt 0:00:38]} 25. h4 {[%emt 0:00:19]} Kg8 {[%emt 0:00:14]} 26. Qc1 {[%emt 0:00:08]} h5 {[%emt 0:00:09]} 27. Qc2 {[%emt 0:00:17]} Nf6 {[%emt 0:00:10]} 28. Ne5 {[%emt 0:00:14]} c5 {[%emt 0:02:42]} 29. Qb3 {[%emt 0:06:42]} Rxe5 {[%emt 0:00:32]} 30. dxe5 {[%emt 0:00:04]} Rxd3 {[%emt 0:00:09]} 31. exf6 {[%emt 0:00:07]} Bxf6 {[%emt 0:00:06]} 32. Bf4 {[%emt 0:00:22]} Rxd1+ {[%emt 0:00:06]} 33. Qxd1 {[%emt 0:00:02]} Qc6 {[%emt 0:00:38]} 34. c4 {[%emt 0:00:48]} Bd4 {[%emt 0:00:16]} 35. Qe2 {[%emt 0:00:06]} a6 {[%emt 0:00:30]} 36. g4 {[%emt 0:01:06]} hxg4 37. Qxg4 {[%emt 0:00:02]} Qe4 {[%emt 0:00:50]} 38. Qg3 {[%emt 0:00:23]} Qf5 {[%emt 0:00:39]} 39. Kg2 {[%emt 0:00:13]} b5 {[%emt 0:00:05]} 40. cxb5 {[%emt 0:00:11]} axb5 {[%emt 0:00:01]} 41. Bh6 {[%emt 0:00:20]} Kh7 {[%emt 0:00:13]} 42. Bg5 {[%emt 0:00:08]} b4 {[%emt 0:00:33]} 43. Qf3 {[%emt 0:00:03]} Qxf3+ 44. Kxf3 {[%emt 0:00:02]} c4 {[%emt 0:00:08]} 45. Ke4 {[%emt 0:00:03]} b3 {[%emt 0:00:04]} 46. axb3 {[%emt 0:00:15]} cxb3 {[%emt 0:00:01]} 47. Kd3 {[%emt 0:00:08]} f6 {[%emt 0:00:20]} 48. Bd2 {[%emt 0:00:29]} Bxf2 {[%emt 0:00:07]} 49. Kc3 {[%emt 0:00:01]} Bxh4 {[%emt 0:00:03]} 50. Kxb3 {[%emt 0:00:02]} g5 {[%emt 0:00:06]} 51. Kc3 {[%emt 0:00:02]} Kg6 {[%emt 0:00:01]} 52. Kd3 {[%emt 0:00:01]} Kf5 {[%emt 0:00:01]} 53. Ke2 {[%emt 0:00:01]} Kg4 {[%emt 0:00:02]} 54. Kf1 {[%emt 0:00:02]} Kf3 {[%emt 0:00:03]} 55. Bb4 {[%emt 0:00:06]} g4 {[%emt 0:00:06]} 56. Bc5 {[%emt 0:00:23]} f5 {[%emt 0:00:04]} 57. Bf2 {[%emt 0:00:18]} Bg5 {[%emt 0:00:04]} 58. Bc5 {[%emt 0:00:08]} g3 {[%emt 0:00:06]} 0-1

[Event "Kupreichik Memorial Rapid 2019"]
[Site "Minsk"]
[Date "2019.08.16"]
[Round "5.21"]
[White "Talma, Sergei"]
[Black "Kochetkov, Vitali"]
[Result "0-1"]
[ECO "A45"]
[WhiteElo "1882"]
[BlackElo "2266"]
[Annotator "NA"]
[PlyCount "107"]
[EventDate "2019.08.15"]
[EventType "swiss"]
[EventCountry "BLR"]
[SourceTitle "playchess.com"]
[Source "ChessBase"]
[SourceQuality "1"]
[TimeControl "900+10"]

1. d4 {[%emt 0:00:00]} Nf6 {[%emt 0:01:37]} 2. Nc3 {[%emt 0:00:00]} d5 {[%emt 0:00:10]} 3. Bf4 {[%emt 0:00:01]} e6 {[%emt 0:00:31]} 4. Nb5 {[%emt 0:00:13]} Na6 {[%emt 0:00:10]} 5. e3 {[%emt 0:00:03]} c6 {[%emt 0:00:47]} 6. Nc3 {[%emt 0:00:03]} Bb4 {[%emt 0:00:50]} 7. Bxa6 {[%emt 0:00:20]} bxa6 {[%emt 0:00:02]} 8. Nge2 {[%emt 0:00:02]} Nh5 {[%emt 0:00:35]} 9. Be5 {[%emt 0:01:27]} f6 {[%emt 0:00:25]} 10. Bg3 {[%emt 0:01:34]} O-O {[%emt 0:00:32]} 11. a3 {[%emt 0:00:05]} Be7 {[%emt 0:00:30]} 12. Qd3 {[%emt 0:01:06]} c5 {[%emt 0:00:40]} 13. dxc5 {[%emt 0:01:29]} Bxc5 {[%emt 0:00:31]} 14. O-O-O {[%emt 0:00:48]} Bb7 15. Bh4 {[%emt 0:02:45]} g6 {[%emt 0:02:04]} 16. g4 {[%emt 0:01:06]} Ng7 {[%emt 0:00:04]} 17. Rhg1 {[%emt 0:00:40]} Rc8 {[%emt 0:00:20]} 18. f4 {[%emt 0:00:42]} Qe8 {[%emt 0:01:49]} 19. Bf2 {[%emt 0:01:59]} Qf7 {[%emt 0:01:00]} 20. f5 {[%emt 0:00:32]} exf5 {[%emt 0:00:13]} 21. gxf5 {[%emt 0:00:02]} g5 {[%emt 0:00:36]} 22. Nd4 {[%emt 0:00:47]} Rfe8 {[%emt 0:00:26]} 23. h4 {[%emt 0:00:09]} h6 {[%emt 0:00:26]} 24. Kb1 {[%emt 0:00:25]} Bxd4 {[%emt 0:00:36]} 25. Qxd4 {[%emt 0:00:23]} Nxf5 {[%emt 0:00:15]} 26. Qd3 {[%emt 0:00:44]} Nd6 {[%emt 0:00:39]} 27. Nxd5 {[%emt 0:00:07]} Ne4 {[%emt 0:00:49]} 28. Be1 {[%emt 0:00:41]} Bxd5 {[%emt 0:00:40]} 29. Qxd5 {[%emt 0:00:02]} Qxd5 {[%emt 0:00:07]} 30. Rxd5 {[%emt 0:00:01]} Rcd8 {[%emt 0:00:22]} 31. Rxd8 {[%emt 0:00:51]} Rxd8 {[%emt 0:00:02]} 32. Kc1 {[%emt 0:00:07]} Kf7 {[%emt 0:00:06]} 33. hxg5 {[%emt 0:00:01]} fxg5 {[%emt 0:00:11]} 34. Rg4 {[%emt 0:00:13]} Re8 {[%emt 0:00:07]} 35. Kd1 {[%emt 0:00:16]} Kg6 {[%emt 0:00:15]} 36. Ke2 {[%emt 0:00:08]} h5 {[%emt 0:00:23]} 37. Rg1 {[%emt 0:00:09]} Re6 {[%emt 0:00:57]} 38. b4 {[%emt 0:00:18]} Rc6 {[%emt 0:00:16]} 39. Kd3 {[%emt 0:00:10]} Nd6 {[%emt 0:00:06]} 40. e4 {[%emt 0:00:24]} a5 {[%emt 0:00:35]} 41. e5 {[%emt 0:00:37]} Nc4 {[%emt 0:00:01]} 42. Bc3 {[%emt 0:00:07]} Nxa3 {[%emt 0:00:07]} 43. bxa5 {[%emt 0:00:12]} Nb5 {[%emt 0:00:11]} 44. Bb4 {[%emt 0:00:14]} h4 {[%emt 0:00:11]} 45. c4 {[%emt 0:00:01]} Nc7 {[%emt 0:00:03]} 46. Bd2 {[%emt 0:00:07]} Ne6 {[%emt 0:00:03]} 47. Ke4 {[%emt 0:00:03]} Rxc4+ {[%emt 0:00:19]} 48. Kd5 {[%emt 0:00:01]} Rd4+ {[%emt 0:00:03]} 49. Kxe6 {[%emt 0:00:04]} Rxd2 {[%emt 0:00:01]} 50. Ke7 {[%emt 0:00:38]} h3 {[%emt 0:00:02]} 51. e6 {[%emt 0:00:01]} h2 {[%emt 0:00:05]} 52. Rh1 {[%emt 0:00:08]} g4 {[%emt 0:00:01]} 53. Kf8 {[%emt 0:00:06]} Rf2+ 54. Ke7 0-1

[Event "Kupreichik Memorial Rapid 2019"]
[Site "Minsk"]
[Date "2019.08.16"]
[Round "5.22"]
[White "Dvurechensky, Viacheslav"]
[Black "Kalinin, Dmitry"]
[Result "0-1"]
[ECO "C01"]
[WhiteElo "1840"]
[BlackElo "2119"]
[Annotator "NA"]
[PlyCount "55"]
[EventDate "2019.08.15"]
[EventType "swiss"]
[EventCountry "BLR"]
[SourceTitle "playchess.com"]
[Source "ChessBase"]
[SourceQuality "1"]
[TimeControl "900+10"]

1. e4 {[%emt 0:00:00]} e6 {[%emt 0:00:00]} 2. d4 {[%emt 0:00:00]} d5 {[%emt 0:00:00]} 3. exd5 {[%emt 0:00:04]} exd5 {[%emt 0:00:00]} 4. Nf3 {[%emt 0:00:05]} Nf6 {[%emt 0:00:00]} 5. Bd3 {[%emt 0:00:25]} Bd6 {[%emt 0:00:02]} 6. h3 {[%emt 0:00:18]} O-O {[%emt 0:00:06]} 7. O-O {[%emt 0:00:04]} Ne4 {[%emt 0:00:24]} 8. c4 {[%emt 0:00:39]} c6 {[%emt 0:00:06]} 9. Nc3 {[%emt 0:00:54]} Bf5 {[%emt 0:01:51]} 10. cxd5 {[%emt 0:01:04]} Nxc3 {[%emt 0:00:07]} 11. bxc3 {[%emt 0:00:06]} Bxd3 {[%emt 0:00:07]} 12. Qxd3 {[%emt 0:00:19]} cxd5 {[%emt 0:00:01]} 13. Bg5 {[%emt 0:01:24]} Qc8 {[%emt 0:03:33]} 14. Rfe1 {[%emt 0:00:52]} a6 {[%emt 0:01:42]} 15. Re2 {[%emt 0:02:26]} Nc6 {[%emt 0:03:11]} 16. Rae1 {[%emt 0:00:34]} b5 {[%emt 0:00:38]} 17. Bc1 {[%emt 0:03:06]} Qd7 {[%emt 0:01:39]} 18. Ne5 {[%emt 0:00:57]} Nxe5 {[%emt 0:00:35]} 19. dxe5 {[%emt 0:00:04]} Bc5 {[%emt 0:00:01]} 20. Be3 {[%emt 0:00:34]} Qc6 {[%emt 0:00:12]} 21. Bxc5 {[%emt 0:01:12]} Qxc5 {[%emt 0:00:01]} 22. Rd1 {[%emt 0:00:22]} Rad8 {[%emt 0:00:02]} 23. Qd4 {[%emt 0:00:36]} Qc6 {[%emt 0:01:17]} 24. f4 {[%emt 0:00:28]} Rc8 {[%emt 0:00:45]} 25. Qxd5 {[%emt 0:01:04]} Qxc3 {[%emt 0:00:09]} 26. e6 {[%emt 0:01:08]} fxe6 {[%emt 0:00:07]} 27. Qxe6+ {[%emt 0:00:34]} Kh8 {[%emt 0:00:02]} 28. Qxa6 0-1

[Event "Kupreichik Memorial Rapid 2019"]
[Site "Minsk"]
[Date "2019.08.16"]
[Round "5.23"]
[White "Zhukovskij, Viktor"]
[Black "Sadovnikov, Konstantin"]
[Result "1-0"]
[ECO "B30"]
[WhiteElo "2028"]
[BlackElo "1798"]
[Annotator "NA"]
[PlyCount "79"]
[EventDate "2019.08.15"]
[EventType "swiss"]
[EventCountry "BLR"]
[SourceTitle "playchess.com"]
[Source "ChessBase"]
[SourceQuality "1"]
[TimeControl "900+10"]

1. e4 {[%emt 0:00:00]} c5 {[%emt 0:00:00]} 2. Nf3 {[%emt 0:00:00]} Nc6 {[%emt 0:00:00]} 3. Bb5 {[%emt 0:00:00]} e5 {[%emt 0:00:00]} 4. O-O {[%emt 0:01:56]} Nge7 {[%emt 0:00:00]} 5. c3 {[%emt 0:00:40]} g6 {[%emt 0:00:00]} 6. d4 {[%emt 0:00:20]} cxd4 {[%emt 0:00:00]} 7. cxd4 {[%emt 0:00:02]} exd4 {[%emt 0:00:00]} 8. Nxd4 {[%emt 0:00:03]} Bg7 {[%emt 0:00:00]} 9. Nb3 {[%emt 0:01:12]} O-O {[%emt 0:00:31]} 10. Nc3 {[%emt 0:00:02]} a6 {[%emt 0:01:32]} 11. Be2 {[%emt 0:00:18]} d6 {[%emt 0:00:50]} 12. Bf4 {[%emt 0:00:43]} Ne5 {[%emt 0:00:33]} 13. Qd2 {[%emt 0:00:05]} Qc7 {[%emt 0:00:16]} 14. Rac1 {[%emt 0:01:50]} N7c6 {[%emt 0:01:56]} 15. Rfd1 {[%emt 0:00:38]} Be6 {[%emt 0:03:54]} 16. Nd5 {[%emt 0:01:42]} Qd8 {[%emt 0:01:12]} 17. Bg5 {[%emt 0:00:03]} f6 {[%emt 0:00:40]} 18. Be3 {[%emt 0:00:01]} Nf7 {[%emt 0:02:33]} 19. Bb6 {[%emt 0:03:52]} Qd7 {[%emt 0:00:13]} 20. Nc7 {[%emt 0:00:12]} Rac8 {[%emt 0:01:06]} 21. Nxe6 {[%emt 0:00:41]} Qxe6 {[%emt 0:00:02]} 22. f3 {[%emt 0:00:01]} Bh6 {[%emt 0:01:12]} 23. Be3 {[%emt 0:00:24]} Bxe3+ {[%emt 0:00:18]} 24. Qxe3 {[%emt 0:00:01]} Kg7 {[%emt 0:00:01]} 25. Bc4 {[%emt 0:00:23]} Qe7 {[%emt 0:00:16]} 26. Qd2 {[%emt 0:00:10]} Rfd8 {[%emt 0:00:11]} 27. Bd5 {[%emt 0:00:08]} Nce5 {[%emt 0:00:49]} 28. Nd4 {[%emt 0:00:28]} Rxc1 {[%emt 0:01:15]} 29. Ne6+ {[%emt 0:00:05]} Kg8 {[%emt 0:00:01]} 30. Rxc1 {[%emt 0:00:01]} Re8 {[%emt 0:00:00]} 31. Rc7 {[%emt 0:00:17]} Nd7 {[%emt 0:00:01]} 32. f4 {[%emt 0:00:47]} f5 {[%emt 0:00:30]} 33. Ng5 {[%emt 0:00:21]} Rf8 {[%emt 0:00:09]} 34. Nxf7 {[%emt 0:00:16]} Rxf7 {[%emt 0:00:01]} 35. Bxf7+ {[%emt 0:01:22]} Qxf7 {[%emt 0:00:01]} 36. Qxd6 {[%emt 0:00:02]} Qxa2 {[%emt 0:00:20]} 37. Rxd7 {[%emt 0:00:04]} Qb1+ {[%emt 0:00:03]} 38. Qd1 {[%emt 0:00:04]} Qxb2 {[%emt 0:00:01]} 39. Qd5+ {[%emt 0:00:18]} Kh8 {[%emt 0:00:03]} 40. Qd4+ {[%emt 0:00:21]} 1-0

[Event "Kupreichik Memorial Rapid 2019"]
[Site "Minsk"]
[Date "2019.08.16"]
[Round "5.24"]
[White "Sarbay, Aleksandr"]
[Black "Tkachou, Viktar"]
[Result "1-0"]
[ECO "B01"]
[WhiteElo "2115"]
[BlackElo "1791"]
[Annotator "NA"]
[PlyCount "41"]
[EventDate "2019.08.15"]
[EventType "swiss"]
[EventCountry "BLR"]
[SourceTitle "playchess.com"]
[Source "ChessBase"]
[SourceQuality "1"]
[TimeControl "900+10"]

1. e4 {[%emt 0:00:00]} d5 {[%emt 0:00:00]} 2. exd5 {[%emt 0:00:00]} Qxd5 {[%emt 0:00:00]} 3. Nc3 {[%emt 0:00:01]} Qa5 {[%emt 0:00:00]} 4. d4 {[%emt 0:00:09]} Nf6 {[%emt 0:00:00]} 5. Nf3 {[%emt 0:00:17]} Bg4 {[%emt 0:00:01]} 6. Bd2 {[%emt 0:03:04]} Nc6 {[%emt 0:00:55]} 7. Bb5 {[%emt 0:00:51]} O-O-O {[%emt 0:00:36]} 8. Bxc6 {[%emt 0:00:31]} bxc6 {[%emt 0:00:02]} 9. h3 {[%emt 0:00:11]} Qh5 {[%emt 0:00:19]} 10. Qe2 {[%emt 0:01:34]} Kb8 {[%emt 0:01:44]} 11. O-O-O {[%emt 0:00:28]} Bxf3 12. gxf3 {[%emt 0:00:01]} e6 {[%emt 0:01:54]} 13. Bf4 {[%emt 0:01:06]} Bd6 {[%emt 0:00:49]} 14. Bxd6 {[%emt 0:01:26]} Rxd6 {[%emt 0:00:37]} 15. Rd3 {[%emt 0:00:44]} Rhd8 {[%emt 0:00:24]} 16. Rhd1 {[%emt 0:00:17]} Nd5 {[%emt 0:02:46]} 17. Ne4 {[%emt 0:00:22]} Nf4 {[%emt 0:00:27]} 18. Rb3+ {[%emt 0:00:02]} Ka8 {[%emt 0:00:16]} 19. Qa6 {[%emt 0:00:10]} Rb8 {[%emt 0:01:37]} 20. Nxd6 {[%emt 0:00:41]} Rxb3 {[%emt 0:01:51]} 21. Qxc6+ {[%emt 0:00:28]} 1-0